[Event "Moscow Open RSSU Cup 2019"]
[Site "Moscow"]
[Date "2019.01.30"]
[Round "5"]
[White "Nikitenko, Mihail"]
[Black "Korneev, Oleg"]
[Result "0-1"]
[ECO "A20"]
[WhiteElo "2402"]
[BlackElo "2545"]
[Annotator "RC"]
[PlyCount "96"]
[EventDate "2019.01.26"]
[EventType "swiss"]
[EventCountry "RUS"]
[SourceTitle "playchess.com"]
[Source "ChessBase"]
[SourceQuality "1"]
[TimeControl "40/5400+30:1800+30"]

1. c4 {[%emt 0:00:00]} e5 {[%emt 0:07:44]} 2. g3 {[%emt 0:00:11]} Nc6 {[%emt 0:04:32]} 3. Nc3 {[%emt 0:00:24]} Bc5 {[%emt 0:00:06]} 4. Bg2 {[%emt 0:00:20]} d6 {[%emt 0:00:03]} 5. Nf3 {[%emt 0:01:42]} a6 {[%emt 0:00:24]} 6. d3 {[%emt 0:00:23]} Nf6 {[%emt 0:00:13]} 7. O-O {[%emt 0:00:12]} h6 {[%emt 0:00:15]} 8. a3 {[%emt 0:01:38]} O-O {[%emt 0:00:11]} 9. b4 {[%emt 0:00:06]} Ba7 {[%emt 0:00:02]} 10. Bb2 {[%emt 0:00:11]} Nd4 {[%emt 0:00:01]} 11. Ne1 {[%emt 0:00:48]} c6 {[%emt 0:00:49]} 12. e3 {[%emt 0:01:21]} Bg4 {[%emt 0:05:26]} 13. f3 {[%emt 0:12:18]} Nf5 {[%emt 0:02:42]} 14. fxg4 {[%emt 0:00:14]} Nxe3 {[%emt 0:00:06]} 15. Qe2 {[%emt 0:00:17]} Nfxg4 {[%emt 0:03:56]} 16. Kh1 {[%emt 0:01:53]} Nxf1 {[%emt 0:04:44]} 17. Qxg4 {[%emt 0:02:48]} Ne3 {[%emt 0:00:39]} 18. Qe2 {[%emt 0:01:18]} Nxg2 {[%emt 0:04:12]} 19. Nxg2 {[%emt 0:01:17]} Bd4 {[%emt 0:07:35]} 20. Nh4 {[%emt 0:08:46]} Qd7 {[%emt 0:06:06]} 21. Rf1 {[%emt 0:00:14]} f5 {[%emt 0:06:06]} 22. Nf3 {[%emt 0:11:24]} Rae8 {[%emt 0:00:26]} 23. Qg2 {[%emt 0:00:44]} Bxc3 {[%emt 0:06:07]} 24. Bxc3 {[%emt 0:00:04]} e4 {[%emt 0:00:02]} 25. Nh4 {[%emt 0:24:37]} Qe6 {[%emt 0:10:33]} 26. g4 {[%emt 0:02:04]} fxg4 {[%emt 0:03:02]} 27. Rxf8+ {[%emt 0:01:56]} Rxf8 {[%emt 0:02:05]} 28. Qxe4 {[%emt 0:01:39]} Qf7 {[%emt 0:05:47]} 29. Bd4 {[%emt 0:01:37]} h5 {[%emt 0:07:37]} 30. c5 dxc5 {[%emt 0:04:52]} 31. Bxc5 {[%emt 0:07:44]} Re8 {[%emt 0:00:44]} 32. Qf5 {[%emt 0:01:36]} Re1+ {[%emt 0:00:23]} 33. Kg2 {[%emt 0:01:33]} Re2+ {[%emt 0:01:44]} 34. Kh1 {[%emt 0:00:08]} Re1+ {[%emt 0:01:12]} 35. Kg2 {[%emt 0:00:02]} Re2+ {[%emt 0:00:04]} 36. Kh1 {[%emt 0:00:02]} Ra2 {[%emt 0:02:54]} 37. Qxf7+ {[%emt 0:08:37]} Kxf7 {[%emt 0:00:03]} 38. Nf5 {[%emt 0:00:04]} Rxa3 {[%emt 0:00:11]} 39. d4 {[%emt 0:05:48]} g6 {[%emt 0:00:19]} 40. Nd6+ {[%emt 0:00:00]} Ke6 {[%emt 0:00:00]} 41. Nxb7 {[%emt 0:00:38]} h4 {[%emt 0:00:34]} 42. Bd6 {[%emt 0:11:21]} Kd5 {[%emt 0:02:07]} 43. Be5 {[%emt 0:00:09]} Ke4 {[%emt 0:01:55]} 44. Kg2 {[%emt 0:00:55]} Ra2+ {[%emt 0:02:55]} 45. Kf1 {[%emt 0:00:03]} Kf3 {[%emt 0:00:32]} 46. Ke1 {[%emt 0:00:02]} g3 {[%emt 0:00:38]} 47. Bxg3 {[%emt 0:00:04]} hxg3 {[%emt 0:00:15]} 48. hxg3 {[%emt 0:00:03]} Ke3 {[%emt 0:00:22]} 0-1

[Event "Moscow Open RSSU Cup 2019"]
[Site "Moscow"]
[Date "2019.01.30"]
[Round "5"]
[White "Pogosyan, Stefan"]
[Black "Golubov, Saveliy"]
[Result "1/2-1/2"]
[ECO "A88"]
[WhiteElo "2382"]
[BlackElo "2482"]
[Annotator "RC"]
[PlyCount "85"]
[EventDate "2019.01.26"]
[EventType "swiss"]
[EventCountry "RUS"]
[SourceTitle "playchess.com"]
[Source "ChessBase"]
[SourceQuality "1"]
[TimeControl "40/5400+30:1800+30"]

1. d4 {[%emt 0:00:00]} f5 {[%emt 0:07:19]} 2. c4 {[%emt 0:00:00]} Nf6 {[%emt 0:00:10]} 3. Nc3 {[%emt 0:00:00]} g6 {[%emt 0:00:09]} 4. g3 {[%emt 0:00:00]} Bg7 {[%emt 0:00:09]} 5. Bg2 {[%emt 0:00:04]} O-O {[%emt 0:00:17]} 6. Nf3 {[%emt 0:00:03]} d6 {[%emt 0:00:53]} 7. O-O {[%emt 0:00:09]} c6 {[%emt 0:00:15]} 8. d5 {[%emt 0:00:08]} e5 {[%emt 0:02:48]} 9. dxe6 {[%emt 0:00:07]} Bxe6 {[%emt 0:00:39]} 10. b3 {[%emt 0:00:05]} Na6 {[%emt 0:03:21]} 11. Bb2 {[%emt 0:00:41]} Kh8 {[%emt 0:05:24]} 12. Qc2 {[%emt 0:00:40]} Qc7 {[%emt 0:01:41]} 13. Rad1 {[%emt 0:01:06]} Rad8 {[%emt 0:00:08]} 14. Nd4 {[%emt 0:04:49]} Bg8 {[%emt 0:01:21]} 15. e4 fxe4 {[%emt 0:03:53]} 16. Nxe4 {[%emt 0:02:41]} Nxe4 {[%emt 0:00:11]} 17. Bxe4 Nb4 {[%emt 0:07:54]} 18. Qd2 {[%emt 0:06:04]} d5 {[%emt 0:02:32]} 19. cxd5 {[%emt 0:15:13]} Nxd5 20. Rfe1 {[%emt 0:04:34]} Nf6 {[%emt 0:18:19]} 21. Bg2 Rfe8 22. Qc2 {[%emt 0:08:55]} Rxe1+ {[%emt 0:13:33]} 23. Rxe1 {[%emt 0:00:51]} Re8 24. Rxe8 {[%emt 0:03:23]} Nxe8 {[%emt 0:00:47]} 25. h4 {[%emt 0:00:07]} Qd7 {[%emt 0:02:24]} 26. Ne2 {[%emt 0:02:26]} Bxb2 {[%emt 0:02:42]} 27. Qxb2+ {[%emt 0:00:10]} Qg7 {[%emt 0:00:06]} 28. Qd2 {[%emt 0:01:51]} Qa1+ {[%emt 0:00:35]} 29. Kh2 {[%emt 0:00:17]} Nf6 {[%emt 0:00:16]} 30. Nf4 {[%emt 0:01:28]} Qe5 {[%emt 0:09:46]} 31. Bf3 {[%emt 0:01:09]} Nd5 {[%emt 0:04:07]} 32. Nxd5 {[%emt 0:13:51]} Bxd5 {[%emt 0:00:23]} 33. Bxd5 {[%emt 0:00:28]} cxd5 {[%emt 0:00:08]} 34. Qa5 {[%emt 0:00:18]} Qd4 {[%emt 0:10:08]} 35. Kg1 {[%emt 0:00:33]} Qd1+ {[%emt 0:01:15]} 36. Kg2 {[%emt 0:00:07]} d4 {[%emt 0:00:05]} 37. Qxa7 d3 {[%emt 0:00:07]} 38. Qa8+ {[%emt 0:02:54]} Kg7 {[%emt 0:00:03]} 39. Qxb7+ {[%emt 0:00:11]} Kg8 {[%emt 0:00:22]} 40. Qd5+ {[%emt 0:00:00]} Kg7 {[%emt 0:00:00]} 41. Qb7+ {[%emt 0:06:45]} Kg8 {[%emt 0:01:39]} 42. Qd5+ {[%emt 0:00:08]} Kg7 {[%emt 0:00:11]} 43. Qb7+ {[%emt 0:00:02]} 1/2-1/2

[Event "Moscow Open RSSU Cup 2019"]
[Site "Moscow"]
[Date "2019.01.31"]
[Round "6"]
[White "Mozharov, Mikhail"]
[Black "Ponkratov, Pavel"]
[Result "1/2-1/2"]
[ECO "A05"]
[WhiteElo "2549"]
[BlackElo "2630"]
[Annotator "RC"]
[PlyCount "81"]
[EventDate "2019.01.26"]
[EventType "swiss"]
[EventCountry "RUS"]
[SourceTitle "playchess.com"]
[Source "ChessBase"]
[SourceQuality "1"]
[TimeControl "40/5400+30:1800+30"]

1. Nf3 {[%emt 0:01:24]} Nf6 {[%emt 0:12:18]} 2. c4 {[%emt 0:00:38]} b6 {[%emt 0:00:15]} 3. g3 {[%emt 0:01:23]} Bb7 {[%emt 0:00:05]} 4. Bg2 {[%emt 0:00:04]} e6 {[%emt 0:00:03]} 5. O-O {[%emt 0:00:34]} Be7 {[%emt 0:00:02]} 6. d4 {[%emt 0:02:02]} O-O {[%emt 0:00:05]} 7. Re1 {[%emt 0:03:54]} d5 {[%emt 0:01:47]} 8. cxd5 {[%emt 0:00:11]} exd5 {[%emt 0:00:05]} 9. Nc3 {[%emt 0:00:14]} Nbd7 {[%emt 0:00:05]} 10. Bf4 {[%emt 0:01:05]} Ne4 {[%emt 0:05:21]} 11. Qb3 {[%emt 0:01:34]} Nxc3 {[%emt 0:01:42]} 12. bxc3 {[%emt 0:00:30]} c5 {[%emt 0:00:38]} 13. h4 {[%emt 0:01:26]} Nf6 {[%emt 0:19:28]} 14. a4 {[%emt 0:07:17]} Bd6 {[%emt 0:13:12]} 15. Bg5 {[%emt 0:03:16]} Bc6 {[%emt 0:23:35]} 16. Ne5 {[%emt 0:06:36]} Bxe5 {[%emt 0:00:05]} 17. dxe5 {[%emt 0:00:03]} h6 {[%emt 0:00:03]} 18. exf6 {[%emt 0:12:44]} hxg5 {[%emt 0:00:04]} 19. hxg5 {[%emt 0:06:34]} gxf6 {[%emt 0:00:05]} 20. Rad1 {[%emt 0:13:42]} fxg5 {[%emt 0:03:46]} 21. Bxd5 {[%emt 0:01:48]} Bxd5 {[%emt 0:00:05]} 22. Rxd5 {[%emt 0:00:03]} Qf6 {[%emt 0:00:05]} 23. e4 {[%emt 0:00:11]} Rad8 {[%emt 0:01:08]} 24. Rf5 {[%emt 0:00:46]} Qg6 {[%emt 0:00:06]} 25. Qc2 {[%emt 0:06:46]} Rfe8 {[%emt 0:02:36]} 26. g4 {[%emt 0:09:47]} Re6 {[%emt 0:11:44]} 27. Kg2 {[%emt 0:09:09]} Rde8 {[%emt 0:01:23]} 28. Qd3 {[%emt 0:05:51]} Re5 {[%emt 0:02:50]} 29. Rxe5 {[%emt 0:02:30]} Rxe5 {[%emt 0:00:04]} 30. Qd8+ {[%emt 0:00:06]} Kg7 {[%emt 0:00:03]} 31. f3 {[%emt 0:02:01]} Qf6 {[%emt 0:01:11]} 32. Qb8 {[%emt 0:00:19]} Qe7 {[%emt 0:01:00]} 33. Rh1 {[%emt 0:01:21]} Qe8 {[%emt 0:00:05]} 34. Qxa7 {[%emt 0:00:15]} Rxe4 {[%emt 0:00:07]} 35. fxe4 {[%emt 0:00:36]} Qxe4+ {[%emt 0:00:04]} 36. Kh2 {[%emt 0:00:05]} Qe2+ {[%emt 0:00:04]} 37. Kh3 {[%emt 0:00:10]} Qf3+ {[%emt 0:00:04]} 38. Kh2 {[%emt 0:00:03]} Qf2+ {[%emt 0:00:03]} 39. Kh3 {[%emt 0:00:03]} Qf3+ {[%emt 0:00:03]} 40. Kh2 {[%emt 0:00:00]} Qf2+ {[%emt 0:00:00]} 41. Kh3 1/2-1/2

[Event "Moscow Open RSSU Cup 2019"]
[Site "Moscow"]
[Date "2019.02.01"]
[Round "7"]
[White "Ponkratov, Pavel"]
[Black "Zakhartsov, Vladimir"]
[Result "1-0"]
[ECO "A50"]
[WhiteElo "2630"]
[BlackElo "2483"]
[Annotator "RC"]
[PlyCount "89"]
[EventDate "2019.01.26"]
[EventType "swiss"]
[EventCountry "RUS"]
[SourceTitle "playchess.com"]
[Source "ChessBase"]
[SourceQuality "1"]
[TimeControl "40/5400+30:1800+30"]

1. d4 Nf6 {[%emt 0:18:27]} 2. c4 {[%emt 0:00:00]} g6 {[%emt 0:00:05]} 3. f3 {[%emt 0:00:00]} Nc6 {[%emt 0:02:05]} 4. e4 {[%emt 0:02:10]} e5 {[%emt 0:00:54]} 5. dxe5 {[%emt 0:00:06]} Nxe5 {[%emt 0:00:07]} 6. Nc3 {[%emt 0:00:07]} Bc5 7. Bf4 {[%emt 0:04:31]} Qe7 {[%emt 0:04:15]} 8. Qd2 {[%emt 0:03:41]} d6 {[%emt 0:02:41]} 9. O-O-O {[%emt 0:09:00]} Be6 {[%emt 0:03:16]} 10. Na4 {[%emt 0:05:02]} O-O-O {[%emt 0:06:11]} 11. Qc3 {[%emt 0:01:37]} Nh5 {[%emt 0:02:45]} 12. Bd2 Bf2 13. g4 {[%emt 0:19:44]} Bd7 {[%emt 0:06:03]} 14. Qa3 {[%emt 0:01:06]} Bxa4 {[%emt 0:03:17]} 15. Qxa4 {[%emt 0:00:20]} Bxg1 {[%emt 0:01:54]} 16. Rxg1 {[%emt 0:00:51]} Nxf3 17. gxh5 {[%emt 0:16:07]} Nxg1 {[%emt 0:00:18]} 18. Qxa7 {[%emt 0:00:04]} Nf3 19. Bc3 {[%emt 0:15:32]} Rhe8 {[%emt 0:06:16]} 20. Bh3+ {[%emt 0:04:25]} f5 {[%emt 0:00:02]} 21. exf5 {[%emt 0:00:07]} Qh4 {[%emt 0:00:29]} 22. Qa8+ {[%emt 0:00:39]} Kd7 {[%emt 0:00:02]} 23. Qxb7 {[%emt 0:00:05]} Qf4+ {[%emt 0:02:02]} 24. Kb1 {[%emt 0:00:10]} Ng5 {[%emt 0:10:16]} 25. Bd2 {[%emt 0:14:00]} Qd4 {[%emt 0:00:29]} 26. Qb5+ {[%emt 0:00:07]} Kc8 {[%emt 0:00:07]} 27. Bg2 {[%emt 0:01:07]} Ne4 {[%emt 0:00:28]} 28. fxg6 {[%emt 0:00:18]} Qd3+ {[%emt 0:00:59]} 29. Kc1 {[%emt 0:00:30]} Re5 {[%emt 0:00:46]} 30. Qa6+ {[%emt 0:00:16]} Kd7 {[%emt 0:01:46]} 31. Bf4 {[%emt 0:00:34]} Qe2 {[%emt 0:00:10]} 32. Bxe5 {[%emt 0:00:28]} Qxg2 {[%emt 0:00:08]} 33. Bf4 {[%emt 0:00:53]} Nc5 {[%emt 0:08:56]} 34. Qb5+ {[%emt 0:00:19]} Kc8 {[%emt 0:00:06]} 35. Be3 {[%emt 0:00:43]} hxg6 {[%emt 0:00:17]} 36. Bxc5 {[%emt 0:00:35]} Qg5+ 37. Kc2 {[%emt 0:01:18]} dxc5 {[%emt 0:00:11]} 38. Qa6+ {[%emt 0:00:06]} Kb8 {[%emt 0:00:01]} 39. Qb5+ {[%emt 0:00:22]} Kc8 {[%emt 0:00:46]} 40. Qa6+ {[%emt 0:00:00]} Kb8 {[%emt 0:00:00]} 41. Qxg6 {[%emt 0:00:13]} Qh4 {[%emt 0:00:08]} 42. Rxd8+ {[%emt 0:00:06]} Qxd8 {[%emt 0:00:02]} 43. a3 {[%emt 0:00:44]} Qd4 {[%emt 0:00:32]} 44. Kb3 {[%emt 0:00:06]} Qd1+ {[%emt 0:00:08]} 45. Ka2 {[%emt 0:00:04]} 1-0

[Event "Moscow Open RSSU Cup 2019"]
[Site "Moscow"]
[Date "2019.02.01"]
[Round "7"]
[White "Lugovskoy, Maxim"]
[Black "Afanasiev, Nikita"]
[Result "0-1"]
[ECO "B07"]
[WhiteElo "2445"]
[BlackElo "2508"]
[Annotator "RC"]
[PlyCount "124"]
[EventDate "2019.01.26"]
[EventType "swiss"]
[EventCountry "RUS"]
[SourceTitle "playchess.com"]
[Source "ChessBase"]
[SourceQuality "1"]
[TimeControl "40/5400+30:1800+30"]

1. e4 {[%emt 0:00:00]} d6 {[%emt 0:03:43]} 2. d4 {[%emt 0:00:00]} Nf6 {[%emt 0:00:06]} 3. Nc3 {[%emt 0:00:00]} e5 {[%emt 0:00:05]} 4. dxe5 {[%emt 0:00:00]} dxe5 {[%emt 0:00:05]} 5. Qxd8+ {[%emt 0:00:00]} Kxd8 {[%emt 0:00:02]} 6. Nf3 {[%emt 0:00:05]} Bd6 {[%emt 0:00:38]} 7. Bc4 {[%emt 0:00:06]} Ke8 {[%emt 0:01:08]} 8. Be3 {[%emt 0:00:46]} a6 {[%emt 0:02:32]} 9. O-O-O {[%emt 0:00:30]} Nbd7 {[%emt 0:06:29]} 10. Bb3 {[%emt 0:08:33]} h6 {[%emt 0:46:02]} 11. Nd2 {[%emt 0:30:11]} Be7 12. Nc4 Ng4 13. Kb1 {[%emt 0:01:00]} Nxe3 {[%emt 0:01:30]} 14. Nxe3 {[%emt 0:02:45]} g6 15. Rhf1 Rf8 {[%emt 0:14:22]} 16. g3 {[%emt 0:13:03]} c6 {[%emt 0:03:47]} 17. f4 {[%emt 0:00:25]} b5 {[%emt 0:04:12]} 18. Ng4 {[%emt 0:08:13]} exf4 {[%emt 0:00:52]} 19. gxf4 {[%emt 0:07:01]} h5 {[%emt 0:01:15]} 20. Ne3 {[%emt 0:01:23]} Nc5 {[%emt 0:01:35]} 21. e5 {[%emt 0:03:10]} Ra7 {[%emt 0:02:23]} 22. a3 {[%emt 0:02:57]} Rd7 {[%emt 0:02:26]} 23. Ba2 {[%emt 0:01:55]} a5 {[%emt 0:02:46]} 24. b4 {[%emt 0:09:16]} axb4 {[%emt 0:02:33]} 25. axb4 {[%emt 0:00:04]} Na6 {[%emt 0:00:07]} 26. Ne4 {[%emt 0:00:28]} Nxb4 {[%emt 0:00:25]} 27. Bb3 Na6 28. Nd6+ {[%emt 0:06:43]} Bxd6 {[%emt 0:01:40]} 29. exd6 {[%emt 0:00:03]} Nc5 {[%emt 0:00:05]} 30. f5 {[%emt 0:04:27]} Ne4 {[%emt 0:00:38]} 31. Rd4 {[%emt 0:00:55]} Nxd6 {[%emt 0:00:16]} 32. Re1 {[%emt 0:00:36]} Nb7 {[%emt 0:00:40]} 33. Ng4+ {[%emt 0:01:02]} Kd8 {[%emt 0:00:10]} 34. Ne5 {[%emt 0:00:01]} Rxd4 {[%emt 0:00:38]} 35. Nxc6+ {[%emt 0:00:01]} Kc7 {[%emt 0:00:09]} 36. Nxd4 {[%emt 0:00:01]} Bxf5 {[%emt 0:00:12]} 37. Nxb5+ {[%emt 0:00:43]} Kd7 {[%emt 0:00:52]} 38. Nd4 {[%emt 0:00:17]} Bg4 {[%emt 0:00:48]} 39. Re5 {[%emt 0:01:35]} f6 {[%emt 0:01:33]} 40. Rd5+ {[%emt 0:00:00]} Kc7 {[%emt 0:00:00]} 41. Nb5+ {[%emt 0:05:30]} Kb6 {[%emt 0:01:26]} 42. Nc3 {[%emt 0:00:10]} Bf3 {[%emt 0:01:14]} 43. Rd7 {[%emt 0:05:51]} Kc5 {[%emt 0:15:04]} 44. h4 {[%emt 0:01:39]} Nd6 {[%emt 0:01:47]} 45. Rg7 {[%emt 0:02:47]} Nf5 {[%emt 0:00:14]} 46. Rxg6 {[%emt 0:00:20]} Nxh4 {[%emt 0:00:07]} 47. Rg7 {[%emt 0:00:52]} Kd4 {[%emt 0:01:55]} 48. Kb2 {[%emt 0:00:42]} Rh8 {[%emt 0:01:28]} 49. Nb5+ {[%emt 0:00:49]} Ke5 {[%emt 0:00:13]} 50. Re7+ {[%emt 0:03:48]} Kf4 {[%emt 0:00:20]} 51. Rf7 {[%emt 0:00:39]} f5 {[%emt 0:01:34]} 52. Nd4 {[%emt 0:01:03]} Bg4 {[%emt 0:05:46]} 53. c4 {[%emt 0:00:23]} Nf3 {[%emt 0:00:20]} 54. Ne6+ {[%emt 0:02:26]} Kg3 {[%emt 0:00:15]} 55. Bc2 {[%emt 0:10:50]} Ne5 {[%emt 0:00:36]} 56. Rg7 {[%emt 0:00:43]} Nxc4+ {[%emt 0:00:16]} 57. Kc3 {[%emt 0:00:05]} Ne3 {[%emt 0:00:04]} 58. Nd4 {[%emt 0:00:16]} Rc8+ {[%emt 0:03:53]} 59. Kd2 {[%emt 0:00:22]} Nxc2 {[%emt 0:00:12]} 60. Nxc2 {[%emt 0:00:30]} Rxc2+ {[%emt 0:01:17]} 61. Kxc2 {[%emt 0:00:08]} h4 {[%emt 0:00:04]} 62. Kd2 {[%emt 0:01:11]} h3 {[%emt 0:00:05]} 0-1

[Event "Moscow Open RSSU Cup 2019"]
[Site "Moscow"]
[Date "2019.02.01"]
[Round "7"]
[White "Atabayev, Yusup"]
[Black "Triapishko, Alexandr"]
[Result "*"]
[ECO "A35"]
[WhiteElo "2425"]
[BlackElo "2508"]
[Annotator "RC"]
[PlyCount "101"]
[EventDate "2019.01.26"]
[EventType "swiss"]
[EventCountry "RUS"]
[SourceTitle "playchess.com"]
[Source "ChessBase"]
[SourceQuality "1"]
[TimeControl "40/5400+30:1800+30"]

1. c4 {[%emt 0:00:00]} c5 {[%emt 0:05:50]} 2. Nf3 {[%emt 0:00:12]} Nc6 3. Nc3 {[%emt 0:01:55]} Nf6 {[%emt 0:08:31]} 4. d4 {[%emt 0:03:47]} cxd4 {[%emt 0:00:14]} 5. Nxd4 {[%emt 0:00:06]} Qb6 {[%emt 0:11:27]} 6. Nb3 {[%emt 0:04:58]} e6 {[%emt 0:00:30]} 7. g3 {[%emt 0:12:17]} Ne5 {[%emt 0:26:20]} 8. e4 Bb4 9. Qe2 {[%emt 0:01:35]} d6 10. f4 {[%emt 0:11:46]} Nc6 {[%emt 0:06:48]} 11. Be3 {[%emt 0:01:21]} Bxc3+ {[%emt 0:04:17]} 12. bxc3 {[%emt 0:00:21]} Qc7 {[%emt 0:00:06]} 13. Bg2 {[%emt 0:02:13]} O-O {[%emt 0:12:07]} 14. O-O {[%emt 0:03:28]} b6 15. Nd4 {[%emt 0:21:55]} Nxd4 {[%emt 0:02:56]} 16. cxd4 {[%emt 0:00:07]} Ba6 {[%emt 0:00:15]} 17. Rfc1 {[%emt 0:01:20]} Rac8 {[%emt 0:02:22]} 18. e5 {[%emt 0:00:24]} Nd5 {[%emt 0:04:15]} 19. exd6 {[%emt 0:04:39]} Qxd6 {[%emt 0:00:22]} 20. Bf2 {[%emt 0:00:05]} Rc7 {[%emt 0:02:47]} 21. c5 {[%emt 0:00:45]} Bxe2 {[%emt 0:04:41]} 22. cxd6 {[%emt 0:00:07]} Rd7 {[%emt 0:00:08]} 23. Bxd5 {[%emt 0:02:17]} exd5 {[%emt 0:00:03]} 24. Be1 {[%emt 0:01:50]} Bc4 {[%emt 0:03:57]} 25. Bb4 {[%emt 0:00:04]} a5 {[%emt 0:01:04]} 26. Ba3 {[%emt 0:00:30]} f6 {[%emt 0:01:18]} 27. Rab1 {[%emt 0:01:33]} b5 {[%emt 0:00:13]} 28. Bc5 {[%emt 0:00:04]} b4 {[%emt 0:01:43]} 29. Rb2 {[%emt 0:00:05]} Re8 {[%emt 0:00:27]} 30. Bb6 {[%emt 0:05:28]} a4 {[%emt 0:01:39]} 31. Bc7 {[%emt 0:00:04]} b3 {[%emt 0:00:05]} 32. axb3 {[%emt 0:00:06]} axb3 {[%emt 0:00:04]} 33. Ra1 {[%emt 0:00:36]} Re4 {[%emt 0:01:20]} 34. Rd2 {[%emt 0:01:30]} f5 35. Kf2 {[%emt 0:00:24]} Kf7 {[%emt 0:00:38]} 36. Ra8 h6 37. h4 {[%emt 0:04:42]} Re8 {[%emt 0:01:13]} 38. Rxe8 {[%emt 0:00:47]} Kxe8 {[%emt 0:00:03]} 39. Rd1 {[%emt 0:00:26]} Rf7 {[%emt 0:00:35]} 40. Ra1 {[%emt 0:00:00]} Kd7 {[%emt 0:00:00]} 41. Ra8 {[%emt 0:15:43]} Rf6 {[%emt 0:13:32]} 42. Rd8+ {[%emt 0:00:47]} Kc6 {[%emt 0:00:29]} 43. Re8 {[%emt 0:00:07]} g5 {[%emt 0:09:54]} 44. hxg5 {[%emt 0:01:02]} hxg5 {[%emt 0:00:06]} 45. fxg5 {[%emt 0:00:03]} Rg6 {[%emt 0:00:29]} 46. Rb8 {[%emt 0:01:10]} Rxg5 {[%emt 0:02:10]} 47. Rb6+ {[%emt 0:06:03]} Kd7 {[%emt 0:00:03]} 48. Rb7 {[%emt 0:00:04]} Kc6 {[%emt 0:04:43]} 49. Rb6+ {[%emt 0:00:05]} Kd7 {[%emt 0:00:03]} 50. Rb7 {[%emt 0:00:04]} Rg8 51. Kf3 *

[Event "Moscow Open RSSU Cup 2019"]
[Site "Moscow"]
[Date "2019.02.03"]
[Round "9"]
[White "Lysyj, Igor"]
[Black "Savchenko, Boris"]
[Result "1/2-1/2"]
[ECO "D85"]
[WhiteElo "2633"]
[BlackElo "2562"]
[Annotator "ChessBase"]
[PlyCount "27"]
[EventDate "2019.01.26"]
[EventType "swiss"]
[EventCountry "RUS"]
[SourceTitle "playchess.com"]
[Source "ChessBase"]
[SourceQuality "1"]
[TimeControl "40/5400+30:1800+30"]

1. d4 {[%emt 0:00:00]} Nf6 {[%emt 0:06:24]} 2. c4 {[%emt 0:00:03]} g6 {[%emt 0:00:07]} 3. Nc3 {[%emt 0:00:17]} d5 {[%emt 0:00:22]} 4. cxd5 {[%emt 0:00:14]} Nxd5 {[%emt 0:00:12]} 5. e4 {[%emt 0:00:21]} Nxc3 {[%emt 0:00:13]} 6. bxc3 {[%emt 0:00:14]} Bg7 {[%emt 0:00:33]} 7. Be3 {[%emt 0:00:17]} c5 {[%emt 0:00:15]} 8. Nf3 {[%emt 0:00:17]} Qa5 {[%emt 0:00:17]} 9. Nd2 {[%emt 0:00:42]} O-O {[%emt 0:00:24]} 10. Nb3 {[%emt 0:00:53]} Qxc3+ {[%emt 0:00:12]} 11. Bd2 {[%emt 0:00:10]} Qb2 {[%emt 0:00:06]} 12. Bc1 {[%emt 0:00:14]} Qc3+ {[%emt 0:00:05]} 13. Bd2 {[%emt 0:00:07]} Qb2 {[%emt 0:00:06]} 14. Bc1 {[%emt 0:00:11]} 1/2-1/2

[Event "Moscow Open RSSU Cup 2019"]
[Site "Moscow"]
[Date "2019.02.03"]
[Round "9"]
[White "Ponkratov, Pavel"]
[Black "Fakhrutdinov, Timur"]
[Result "1-0"]
[ECO "A18"]
[WhiteElo "2630"]
[BlackElo "2481"]
[Annotator "ChessBase"]
[PlyCount "73"]
[EventDate "2019.01.26"]
[EventType "swiss"]
[EventCountry "RUS"]
[SourceTitle "playchess.com"]
[Source "ChessBase"]
[SourceQuality "1"]
[TimeControl "40/5400+30:1800+30"]

1. c4 {[%emt 0:14:15]} Nf6 {[%emt 0:00:00]} 2. Nc3 {[%emt 0:00:07]} e6 {[%emt 0:00:00]} 3. e4 {[%emt 0:00:04]} d5 {[%emt 0:00:00]} 4. cxd5 {[%emt 0:00:07]} exd5 {[%emt 0:00:00]} 5. e5 {[%emt 0:00:05]} Ne4 {[%emt 0:00:03]} 6. Nf3 {[%emt 0:00:06]} Bf5 {[%emt 0:08:49]} 7. d3 {[%emt 0:00:06]} Nxc3 {[%emt 0:01:20]} 8. bxc3 {[%emt 0:00:04]} c5 {[%emt 0:00:46]} 9. d4 {[%emt 0:00:06]} Nc6 {[%emt 0:01:18]} 10. Bd3 {[%emt 0:00:06]} Qd7 {[%emt 0:02:16]} 11. O-O {[%emt 0:02:42]} Bxd3 {[%emt 0:10:57]} 12. Qxd3 {[%emt 0:00:07]} c4 {[%emt 0:00:36]} 13. Qc2 {[%emt 0:04:30]} Be7 {[%emt 0:07:18]} 14. Ng5 {[%emt 0:05:20]} Qg4 {[%emt 0:30:26]} 15. f3 {[%emt 0:04:47]} Qh5 {[%emt 0:01:50]} 16. Nh3 {[%emt 0:00:17]} Qg6 {[%emt 0:05:29]} 17. Qb2 {[%emt 0:00:08]} Nd8 {[%emt 0:01:44]} 18. f4 {[%emt 0:01:12]} Qf5 {[%emt 0:09:11]} 19. Qb5+ {[%emt 0:01:24]} Qd7 {[%emt 0:00:09]} 20. Qb1 {[%emt 0:00:05]} f5 {[%emt 0:01:41]} 21. exf6 {[%emt 0:00:36]} Bxf6 {[%emt 0:01:23]} 22. Ba3 {[%emt 0:07:45]} Nc6 {[%emt 0:00:35]} 23. Re1+ {[%emt 0:01:02]} Kd8 {[%emt 0:03:33]} 24. f5 {[%emt 0:02:16]} Re8 {[%emt 0:03:04]} 25. Qb5 {[%emt 0:02:41]} Ne7 {[%emt 0:04:59]} 26. Rab1 {[%emt 0:06:35]} Nxf5 {[%emt 0:01:01]} 27. Rxe8+ {[%emt 0:06:04]} Kxe8 {[%emt 0:00:10]} 28. Nf4 {[%emt 0:00:12]} Rd8 {[%emt 0:04:47]} 29. Nxd5 {[%emt 0:00:24]} Bg5 {[%emt 0:00:31]} 30. Nc7+ {[%emt 0:01:26]} Kf7 {[%emt 0:00:05]} 31. Qxc4+ {[%emt 0:00:20]} Kg6 {[%emt 0:00:26]} 32. Ne6 {[%emt 0:00:59]} Qc8 {[%emt 0:00:54]} 33. Qb3 {[%emt 0:02:42]} Be3+ {[%emt 0:00:14]} 34. Kh1 {[%emt 0:00:16]} Re8 {[%emt 0:00:08]} 35. d5 {[%emt 0:00:06]} h5 {[%emt 0:01:01]} 36. Rf1 {[%emt 0:00:56]} Qb8 {[%emt 0:00:40]} 37. Qb1 {[%emt 0:00:30]} 1-0